[Event "Tata Steel-A 79th"]
[Site "Wijk aan Zee"]
[Date "2017.01.28"]
[Round "12"]
[White "Adhiban, Baskaran"]
[Black "Giri, Anish"]
[Result "1/2-1/2"]
[ECO "C28"]
[WhiteElo "2653"]
[BlackElo "2773"]
[PlyCount "68"]
[EventDate "2017.01.14"]
[EventType "tourn"]
[EventRounds "13"]
[EventCountry "NED"]
[EventCategory "21"]
[SourceTitle "CBM 177"]
[Source "ChessBase"]
[SourceDate "2017.03.16"]
[SourceVersion "1"]
[SourceVersionDate "2017.03.16"]
[SourceQuality "1"]
[TimeControl "40/6000+30:20/3000+30:900+30"]

1. e4 {[%emt 0:00:00]} e5 {[%emt 0:00:25]} 2. Bc4 {[%emt 0:00:00]} Nf6 {
[%emt 0:00:59]} 3. d3 {[%emt 0:00:00]} Nc6 {[%emt 0:00:36]} 4. Nc3 {[%emt 0:00:
00]} Bb4 {[%emt 0:00:03]} 5. Nge2 {[%emt 0:00:13]} d5 {[%emt 0:00:05]} 6. exd5
{[%emt 0:00:34]} Nxd5 {[%emt 0:00:04]} 7. O-O {[%emt 0:00:36]} Be6 {[%emt 0:00:
04]} 8. Bxd5 {[%emt 0:08:06]} Bxd5 {[%emt 0:00:08]} 9. f4 {[%emt 0:00:02]} f6 {
[%emt 0:00:06]} (9... Bxc3 10. Nxc3 O-O 11. f5 f6 12. Qg4 Nd4 13. Rf2 c5 14.
Be3 b6 15. Re1 Rc8 16. Bc1 c4 17. Re3 Ba8 18. Rh3 Rf7 19. Qh5 h6 20. dxc4 Rd7
21. Rg3 Rxc4 22. Bxh6 b5 23. Rd2 Rcc7 24. Nxb5 Rxc2 25. Rxc2 Nxc2 26. h3 Ne1
27. Nd6 Qb6+ 28. Kh2 Qxd6 29. Qe8+ Kh7 30. Qg6+ Kg8 31. Qe8+ Kh7 32. Qxa8 Nd3
33. Be3 Nf4 34. Rg4 g5 35. fxg6+ Nxg6 36. Qe4 Qd3 37. Qf3 f5 38. Rg3 Nf4 39.
Bxf4 {Hamdouchi,H (2592)-Ipatov,A (2512) Salou 2011 1-0}) 10. fxe5 {[%emt 0:02:
42]} Nxe5 {[%emt 0:00:42]} 11. Nxd5 {[%emt 0:02:00]} Qxd5 {[%emt 0:00:10]} 12.
c3 {[%emt 0:05:09]} Bd6 {[%emt 0:13:31]} 13. Nf4 {[%emt 0:01:31]} Qf7 {[%emt 0:
00:18]} 14. d4 {[%emt 0:08:19]} O-O-O {[%emt 0:09:29]} 15. Qa4 {[%emt 0:11:58]}
a6 {[%emt 0:06:52]} 16. Qb3 {[%emt 0:24:14]} Qxb3 {[%emt 0:10:09]} 17. axb3 {
[%emt 0:00:02]} Ng6 {[%emt 0:00:08]} 18. Nxg6 {[%emt 0:07:26]} hxg6 {[%emt 0:
00:18]} 19. Bf4 {[%emt 0:00:01]} Bxf4 {[%emt 0:05:40]} 20. Rxf4 {[%emt 0:00:01]
} Rde8 {[%emt 0:00:06]} 21. h3 {[%emt 0:03:10]} g5 {[%emt 0:01:15]} 22. Rf5 {
[%emt 0:05:44]} Re2 {[%emt 0:00:38]} 23. Rf2 {[%emt 0:00:24]} Rhe8 {[%emt 0:03:
30]} 24. Raf1 {[%emt 0:02:10]} Kd7 {[%emt 0:07:26]} 25. Rxe2 {[%emt 0:02:55]}
Rxe2 {[%emt 0:00:05]} 26. Rf2 {[%emt 0:00:07]} Re1+ {[%emt 0:01:41]} 27. Rf1 {
[%emt 0:00:07]} Re2 {[%emt 0:18:35]} 28. Rf2 {[%emt 0:00:05]} Re1+ {[%emt 0:00:
02]} 29. Rf1 {[%emt 0:00:06]} Rxf1+ {[%emt 0:06:46]} 30. Kxf1 {[%emt 0:00:05]}
Ke6 {[%emt 0:00:47]} 31. Ke2 {[%emt 0:00:04]} Kf5 {[%emt 0:01:03]} 32. Kf3 {
[%emt 0:04:27]} a5 {[%emt 0:00:20]} 33. c4 {[%emt 0:04:52]} b6 {[%emt 0:03:38]}
34. Ke3 {[%emt 0:01:55]} Ke6 {[%emt 0:03:20]} 1/2-1/2

[Event "Tata Steel-A 79th"]
[Site "Wijk aan Zee"]
[Date "2017.01.29"]
[Round "13"]
[White "Giri, Anish"]
[Black "Eljanov, Pavel"]
[Result "1/2-1/2"]
[ECO "E19"]
[WhiteElo "2773"]
[BlackElo "2755"]
[PlyCount "126"]
[EventDate "2017.01.14"]
[EventType "tourn"]
[EventRounds "13"]
[EventCountry "NED"]
[EventCategory "21"]
[SourceTitle "CBM 177"]
[Source "ChessBase"]
[SourceDate "2017.03.16"]
[SourceVersion "1"]
[SourceVersionDate "2017.03.16"]
[SourceQuality "1"]
[TimeControl "40/6000+30:20/3000+30:900+30"]

1. d4 {[%emt 0:00:00]} Nf6 {[%emt 0:00:09]} 2. c4 {[%emt 0:00:00]} e6 {[%emt 0:
00:06]} 3. Nf3 {[%emt 0:00:00]} b6 {[%emt 0:00:19]} 4. g3 {[%emt 0:00:00]} Bb7
{[%emt 0:00:07]} 5. Bg2 {[%emt 0:00:00]} Be7 {[%emt 0:00:04]} 6. O-O {[%emt 0:
00:13]} O-O {[%emt 0:00:05]} 7. Nc3 {[%emt 0:00:02]} Ne4 {[%emt 0:00:07]} 8.
Qc2 {[%emt 0:00:05]} Nxc3 {[%emt 0:00:19]} 9. Qxc3 {[%emt 0:00:04]} d6 {
[%emt 0:01:20]} 10. b3 {[%emt 0:11:25]} Nd7 {[%emt 0:01:36]} 11. Bb2 {[%emt 0:
00:12]} Be4 {[%emt 0:03:57]} (11... a5 12. Rad1 Qe8 13. Qc2 Nf6 14. Ne1 Bxg2
15. Nxg2 a4 16. e4 b5 17. e5 axb3 18. axb3 dxe5 19. dxe5 Nd7 20. Nf4 Nb6 21.
cxb5 Qxb5 22. Qxc7 Bg5 23. Bd4 Bxf4 24. Qxb6 Qxb6 25. Bxb6 Bxe5 26. Bc5 Rfb8
27. b4 h5 28. Rd7 Rb5 29. Rc1 Ra3 30. Rc4 Rb8 31. Kg2 Rb3 32. Rh4 g6 33. Re4
Bf6 34. h4 Rd8 35. Rb7 Rd5 36. Rc7 g5 37. hxg5 Rxg5 38. Rf4 Kg7 39. Rf3 Rb1 40.
Bf8+ Kg6 41. Be7 {Batchuluun,T (2523)-Matlakov,M (2692) St Petersburg 2014 1/
2-1/2}) 12. Bh3 {[%emt 0:08:43]} Bf6 {[%emt 0:12:18]} 13. Rad1 $146 {[%emt 0:
03:23]} (13. Nd2 Bb7 14. Qd3 e5 15. Qf5 Bc8 16. Qf3 Rb8 17. Ne4 Re8 18. Nxf6+
Qxf6 19. Qxf6 Nxf6 20. Bxc8 Rbxc8 21. dxe5 dxe5 22. Rfd1 Ne4 23. Rd5 f6 24.
Rad1 a5 25. e3 c6 26. Rd7 Nc5 27. R7d2 Ne4 28. Rd7 Nc5 29. R7d2 {1/2-1/2 (29)
Ashwin,J (2465)-Arun Prasad,S (2491) Rockville 2016}) 13... Qe7 {[%emt 0:06:28]
} 14. Rd2 {[%emt 0:16:43]} a5 {[%emt 0:09:31]} 15. Qe3 {[%emt 0:01:43]} Bb7 {
[%emt 0:02:09]} 16. d5 {[%emt 0:02:08]} Bxb2 {[%emt 0:02:42]} 17. dxe6 {
[%emt 0:05:49]} Bf6 {[%emt 0:27:42]} 18. exd7 {[%emt 0:01:02]} Qxe3 {[%emt 0:
00:04]} 19. fxe3 {[%emt 0:00:03]} Rad8 {[%emt 0:01:15]} 20. Nd4 {[%emt 0:05:01]
} Bxd4 {[%emt 0:00:05]} 21. exd4 {[%emt 0:17:29]} Bc6 {[%emt 0:00:17]} 22. c5 {
[%emt 0:00:06]} Bxd7 {[%emt 0:00:08]} 23. Bxd7 {[%emt 0:00:17]} Rxd7 {[%emt 0:
00:04]} 24. cxb6 {[%emt 0:00:02]} cxb6 {[%emt 0:00:06]} 25. Rc1 {[%emt 0:00:04]
} d5 {[%emt 0:00:12]} 26. Rc6 {[%emt 0:04:49]} Rb8 {[%emt 0:00:12]} 27. Rdc2 {
[%emt 0:00:04]} Kf8 {[%emt 0:00:08]} 28. Kf2 {[%emt 0:10:19]} Ke7 {[%emt 0:07:
55]} 29. Kf3 {[%emt 0:00:54]} Rd6 {[%emt 0:04:55]} 30. Rc7+ {[%emt 0:00:25]}
Ke6 {[%emt 0:03:48]} 31. a3 {[%emt 0:03:48]} Rbd8 {[%emt 0:08:23]} 32. Kf4 {
[%emt 0:04:36]} Kf6 {[%emt 0:06:21]} 33. R2c6 {[%emt 0:03:09]} g5+ {[%emt 0:02:
17]} 34. Kf3 {[%emt 0:00:45]} h5 {[%emt 0:00:13]} 35. b4 {[%emt 0:00:11]} axb4
{[%emt 0:03:29]} 36. axb4 {[%emt 0:00:02]} Rxc6 {[%emt 0:04:28]} 37. Rxc6+ {
[%emt 0:00:04]} Kf5 {[%emt 0:00:03]} 38. Rxb6 {[%emt 0:10:16]} Ra8 {[%emt 0:00:
08]} 39. Rd6 {[%emt 0:00:59]} Ra3+ {[%emt 0:00:05]} 40. Kf2 {[%emt 0:00:00]}
Ke4 {[%emt 0:00:39]} 41. Rf6 {[%emt 0:06:10]} Rb3 {[%emt 0:17:04]} 42. h4 {
[%emt 0:15:49]} Kxd4 {[%emt 0:03:46]} 43. hxg5 {[%emt 0:01:54]} Rxb4 {[%emt 0:
00:35]} 44. Rxf7 {[%emt 0:10:17]} Ke5 {[%emt 0:00:42]} 45. Rh7 {[%emt 0:03:30]}
Kf5 {[%emt 0:00:36]} 46. Rxh5 {[%emt 0:00:07]} Kg6 {[%emt 0:00:29]} 47. Rh4 {
[%emt 0:06:45]} d4 {[%emt 0:07:07]} 48. Kf3 {[%emt 0:04:43]} Rb3+ {[%emt 0:02:
36]} 49. Kf2 {[%emt 0:03:38]} Rb4 {[%emt 0:02:47]} 50. Re4 {[%emt 0:02:48]} Kf5
{[%emt 0:00:15]} 51. Rf4+ {[%emt 0:01:36]} Kxg5 {[%emt 0:00:06]} 52. Ke1 {
[%emt 0:00:07]} Rb1+ {[%emt 0:03:41]} 53. Kd2 {[%emt 0:00:06]} Rg1 {[%emt 0:00:
40]} 54. Rf3 {[%emt 0:01:20]} Kg4 {[%emt 0:00:06]} 55. Rf4+ {[%emt 0:01:52]}
Kg5 {[%emt 0:00:03]} 56. Rxd4 {[%emt 0:00:36]} Rxg3 {[%emt 0:00:05]} 57. Rd3 {
[%emt 0:00:03]} Rg4 {[%emt 0:00:36]} 58. Rf3 {[%emt 0:00:03]} Ra4 {[%emt 0:00:
26]} 59. Rf8 {[%emt 0:01:24]} Kg6 {[%emt 0:04:26]} 60. Ke3 {[%emt 0:00:00]}
Ra3+ {[%emt 0:00:25]} 61. Kf4 {[%emt 0:00:42]} Ra6 {[%emt 0:00:50]} 62. Rf5 {
[%emt 0:00:30]} Re6 {[%emt 0:00:53]} 63. e4 {[%emt 0:00:04]} Rf6 {[%emt 0:00:
08]} 1/2-1/2